[Event "Early-Titled-Tuesday-Blitz-June-18-2024"]
[Site "Chess.com"]
[Date "2024.06.18"]
[Round "2"]
[White "Sargsyan_Shant"]
[Black "ManMish2"]
[Result "1-0"]
[WhiteElo "2959"]
[BlackElo "2640"]
[TimeControl "180+1"]
[EndTime "8:17:43 PDT"]
[Termination "Sargsyan_Shant won on time"]

1. c4 {[%clk 0:03:00.3]} 1... Nf6 {[%clk 0:02:58.4]} 2. g3 {[%clk 0:03:01.2]}
2... e6 {[%clk 0:02:57.3]} 3. Bg2 {[%clk 0:03:01.3]} 3... d5 {[%clk 0:02:57.8]}
4. Nf3 {[%clk 0:03:01.6]} 4... c5 {[%clk 0:02:57.2]} 5. cxd5 {[%clk 0:03:00.4]}
5... exd5 {[%clk 0:02:55.5]} 6. d4 {[%clk 0:03:00.8]} 6... Nc6 {[%clk
0:02:55.8]} 7. O-O {[%clk 0:03:01.1]} 7... cxd4 {[%clk 0:02:54.7]} 8. Nxd4
{[%clk 0:03:01.5]} 8... Bc5 {[%clk 0:02:55]} 9. Nb3 {[%clk 0:03:01.3]} 9... Bb6
{[%clk 0:02:51]} 10. Bg5 {[%clk 0:03:00.4]} 10... O-O {[%clk 0:02:50]} 11. Nc3
{[%clk 0:02:51.4]} 11... Be6 {[%clk 0:02:49.7]} 12. Rc1 {[%clk 0:02:37.7]} 12...
h6 {[%clk 0:02:42.9]} 13. Bf4 {[%clk 0:02:18.1]} 13... d4 {[%clk 0:02:22.3]} 14.
Na4 {[%clk 0:01:33.3]} 14... Bd5 {[%clk 0:02:20]} 15. Qd3 {[%clk 0:01:28.1]}
15... Bxg2 {[%clk 0:02:19]} 16. Kxg2 {[%clk 0:01:29]} 16... Nd5 {[%clk
0:02:15.5]} 17. Bd2 {[%clk 0:01:22.9]} 17... Re8 {[%clk 0:01:58.4]} 18. Nbc5
{[%clk 0:01:19.4]} 18... Qe7 {[%clk 0:01:54.4]} 19. Qf3 {[%clk 0:01:12.5]} 19...
Rad8 {[%clk 0:01:41.2]} 20. Rfe1 {[%clk 0:01:12.1]} 20... Ndb4 {[%clk
0:01:08.6]} 21. Bxb4 {[%clk 0:01:08.6]} 21... Nxb4 {[%clk 0:01:09.5]} 22. a3
{[%clk 0:01:08.9]} 22... Nd5 {[%clk 0:00:56]} 23. Nd3 {[%clk 0:01:07.9]} 23...
Qd6 {[%clk 0:00:47.4]} 24. Nac5 {[%clk 0:01:02.4]} 24... Re7 {[%clk 0:00:44.2]}
25. Rc4 {[%clk 0:00:58.6]} 25... Rde8 {[%clk 0:00:41.4]} 26. Rxd4 {[%clk
0:00:55.9]} 26... Rd8 {[%clk 0:00:27.8]} 27. b4 {[%clk 0:00:51.6]} 27... Bxc5
{[%clk 0:00:24]} 28. bxc5 {[%clk 0:00:48.4]} 28... Qe6 {[%clk 0:00:09.9]} 29. e4
{[%clk 0:00:47.4]} 1-0

[Event "Early-Titled-Tuesday-Blitz-June-18-2024"]
[Site "Chess.com"]
[Date "2024.06.18"]
[Round "2"]
[White "andrzej"]
[Black "tarno17"]
[Result "1-0"]
[WhiteElo "2481"]
[BlackElo "2195"]
[TimeControl "180+1"]
[EndTime "8:17:43 PDT"]
[Termination "andrzej won on time"]

1. e4 {[%clk 0:03:00.9]} 1... c5 {[%clk 0:02:58.9]} 2. Nf3 {[%clk 0:03:01.2]}
2... e6 {[%clk 0:02:58.3]} 3. d4 {[%clk 0:03:01.7]} 3... cxd4 {[%clk 0:02:58.9]}
4. Nxd4 {[%clk 0:03:02.4]} 4... a6 {[%clk 0:02:59.5]} 5. h3 {[%clk 0:03:00.2]}
5... Qc7 {[%clk 0:02:57]} 6. Bd3 {[%clk 0:02:56]} 6... Bc5 {[%clk 0:02:53.7]} 7.
Nb3 {[%clk 0:02:55.3]} 7... Be7 {[%clk 0:02:53.3]} 8. c4 {[%clk 0:02:51.9]} 8...
Nf6 {[%clk 0:02:47.4]} 9. O-O {[%clk 0:02:48.6]} 9... Nc6 {[%clk 0:02:46.8]} 10.
Nc3 {[%clk 0:02:46.4]} 10... Ne5 {[%clk 0:02:27.2]} 11. Bf4 {[%clk 0:02:37.5]}
11... d6 {[%clk 0:01:46.2]} 12. Rc1 {[%clk 0:02:36.6]} 12... b6 {[%clk
0:01:44.3]} 13. a4 {[%clk 0:02:23.8]} 13... Bb7 {[%clk 0:01:44.1]} 14. a5 {[%clk
0:02:23.7]} 14... bxa5 {[%clk 0:01:38.3]} 15. c5 {[%clk 0:02:03.5]} 15... Nxd3
{[%clk 0:01:20.4]} 16. Qxd3 {[%clk 0:01:56.8]} 16... e5 {[%clk 0:01:19.8]} 17.
Bg5 {[%clk 0:01:40.3]} 17... O-O {[%clk 0:00:57.3]} 18. Bxf6 {[%clk 0:01:37.8]}
18... gxf6 {[%clk 0:00:45.6]} 19. cxd6 {[%clk 0:01:37.3]} 19... Qxd6 {[%clk
0:00:41.7]} 20. Qg3+ {[%clk 0:01:31.2]} 20... Kh8 {[%clk 0:00:41.2]} 21. Nxa5
{[%clk 0:01:31.8]} 21... Rab8 {[%clk 0:00:15.7]} 22. Nxb7 {[%clk 0:01:28.9]}
22... Rxb7 {[%clk 0:00:15.9]} 23. Rfd1 {[%clk 0:01:29.1]} 23... Qb4 {[%clk
0:00:11.9]} 24. Nd5 {[%clk 0:01:24.1]} 24... Rg8 {[%clk 0:00:09.2]} 25. Qxg8+
{[%clk 0:01:16.2]} 25... Kxg8 {[%clk 0:00:08.3]} 26. Nxb4 {[%clk 0:01:16.1]}
26... Rxb4 {[%clk 0:00:07.7]} 27. Rc7 {[%clk 0:01:05.2]} 27... Bf8 {[%clk
0:00:06.7]} 28. Rd8 {[%clk 0:01:01.5]} 28... Kg7 {[%clk 0:00:05.9]} 29. Rdd7
{[%clk 0:01:00.9]} 29... Rxb2 {[%clk 0:00:03.2]} 30. Rxf7+ {[%clk 0:01:00.9]}
30... Kg8 {[%clk 0:00:04]} 31. Rxf6 {[%clk 0:00:59.9]} 31... Ba3 {[%clk
0:00:01.4]} 32. Rxa6 {[%clk 0:00:57.3]} 32... Rb1+ {[%clk 0:00:01.5]} 33. Kh2
{[%clk 0:00:57.5]} 33... Bf8 {[%clk 0:00:01.4]} 34. Ra8 {[%clk 0:00:56.6]} 34...
Rf1 {[%clk 0:00:01.9]} 35. Kg3 {[%clk 0:00:53.8]} 35... h5 {[%clk 0:00:01]} 36.
h4 {[%clk 0:00:51.9]} 1-0

[Event "Early-Titled-Tuesday-Blitz-June-18-2024"]
[Site "Chess.com"]
[Date "2024.06.18"]
[Round "2"]
[White "subham777"]
[Black "Bkmzzzzz"]
[Result "1-0"]
[WhiteElo "2590"]
[BlackElo "2371"]
[TimeControl "180+1"]
[EndTime "8:17:45 PDT"]
[Termination "subham777 won by checkmate"]

1. e4 {[%clk 0:03:00.9]} 1... d6 {[%clk 0:02:58.4]} 2. g3 {[%clk 0:02:53.1]}
2... Nf6 {[%clk 0:02:58.5]} 3. Bg2 {[%clk 0:02:52.6]} 3... e5 {[%clk 0:02:59.1]}
4. Ne2 {[%clk 0:02:49.2]} 4... Be7 {[%clk 0:02:59.4]} 5. O-O {[%clk 0:02:45.3]}
5... O-O {[%clk 0:02:59.9]} 6. c3 {[%clk 0:02:41.4]} 6... c6 {[%clk 0:03:00.1]}
7. d4 {[%clk 0:02:39]} 7... Re8 {[%clk 0:02:55.1]} 8. h3 {[%clk 0:02:38.5]} 8...
Qc7 {[%clk 0:02:53.7]} 9. Kh2 {[%clk 0:02:38.2]} 9... Nbd7 {[%clk 0:02:52.5]}
10. f4 {[%clk 0:02:36.8]} 10... Bf8 {[%clk 0:02:40.8]} 11. fxe5 {[%clk
0:02:21.8]} 11... dxe5 {[%clk 0:02:38.8]} 12. d5 {[%clk 0:02:12.5]} 12... Nc5
{[%clk 0:01:59.4]} 13. Qc2 {[%clk 0:02:08.9]} 13... cxd5 {[%clk 0:01:45.7]} 14.
exd5 {[%clk 0:02:09.8]} 14... e4 {[%clk 0:01:46.1]} 15. c4 {[%clk 0:01:51.3]}
15... Nd3 {[%clk 0:01:39.3]} 16. Nd2 {[%clk 0:01:35.3]} 16... Nxd5 {[%clk
0:01:08.3]} 17. Nxe4 {[%clk 0:01:03.9]} 17... N5b4 {[%clk 0:00:45.7]} 18. Qb3
{[%clk 0:01:01.3]} 18... Nxc1 {[%clk 0:00:44.3]} 19. Raxc1 {[%clk 0:01:00.1]}
19... a5 {[%clk 0:00:19.6]} 20. c5 {[%clk 0:00:47.7]} 20... Be6 {[%clk
0:00:16.9]} 21. Qa4 {[%clk 0:00:37.9]} 21... Bd5 {[%clk 0:00:16.3]} 22. N2c3
{[%clk 0:00:34.6]} 22... Bc6 {[%clk 0:00:16.6]} 23. Qd1 {[%clk 0:00:33.3]} 23...
Rad8 {[%clk 0:00:16.3]} 24. Qg4 {[%clk 0:00:31.7]} 24... Rd4 {[%clk 0:00:15]}
25. Nf6+ {[%clk 0:00:31.1]} 25... Kh8 {[%clk 0:00:14.8]} 26. Qxd4 {[%clk
0:00:20.8]} 26... gxf6 {[%clk 0:00:14.4]} 27. Qxf6+ {[%clk 0:00:20.6]} 27... Bg7
{[%clk 0:00:14.9]} 28. Qxf7 {[%clk 0:00:20.5]} 28... Re7 {[%clk 0:00:15.2]} 29.
Qf4 {[%clk 0:00:18.9]} 29... Be5 {[%clk 0:00:14.8]} 30. Qf8# {[%clk 0:00:18.5]}
1-0

[Event "Early-Titled-Tuesday-Blitz-June-18-2024"]
[Site "Chess.com"]
[Date "2024.06.18"]
[Round "2"]
[White "TheBigBoss04"]
[Black "Alexchess1984"]
[Result "1-0"]
[WhiteElo "2808"]
[BlackElo "2563"]
[TimeControl "180+1"]
[EndTime "8:17:47 PDT"]
[Termination "TheBigBoss04 won by resignation"]

1. e4 {[%clk 0:02:53]} 1... e6 {[%clk 0:02:59.9]} 2. d4 {[%clk 0:02:49.7]} 2...
d5 {[%clk 0:03:00.8]} 3. Nd2 {[%clk 0:02:48.9]} 3... b6 {[%clk 0:03:00.4]} 4.
Ngf3 {[%clk 0:02:46]} 4... Qd7 {[%clk 0:03:00.5]} 5. exd5 {[%clk 0:02:44.3]}
5... exd5 {[%clk 0:02:59.7]} 6. Bd3 {[%clk 0:02:43.8]} 6... Bd6 {[%clk
0:02:56.1]} 7. O-O {[%clk 0:02:41.5]} 7... Ne7 {[%clk 0:02:52.6]} 8. Re1 {[%clk
0:02:39.8]} 8... O-O {[%clk 0:02:51.9]} 9. Ne5 {[%clk 0:02:36.2]} 9... Qd8
{[%clk 0:02:23.6]} 10. c3 {[%clk 0:02:10.2]} 10... f6 {[%clk 0:02:21.8]} 11.
Nef3 {[%clk 0:02:07.6]} 11... Bg4 {[%clk 0:02:20.8]} 12. Nf1 {[%clk 0:02:04.6]}
12... c5 {[%clk 0:02:15.7]} 13. h3 {[%clk 0:01:56]} 13... Bh5 {[%clk 0:02:14.2]}
14. Ng3 {[%clk 0:01:53.8]} 14... Bg6 {[%clk 0:02:10]} 15. Bxg6 {[%clk
0:01:42.2]} 15... Nxg6 {[%clk 0:02:09.1]} 16. Nf5 {[%clk 0:01:41.4]} 16... Nc6
{[%clk 0:01:56.8]} 17. Re6 {[%clk 0:01:40.5]} 17... Qd7 {[%clk 0:01:19.4]} 18.
Rxd6 {[%clk 0:01:19.8]} 18... Qxf5 {[%clk 0:01:18.8]} 19. dxc5 {[%clk
0:01:16.2]} 19... Nce5 {[%clk 0:01:15.2]} 20. Qxd5+ {[%clk 0:01:13.3]} 20... Kh8
{[%clk 0:01:13.3]} 21. c6 {[%clk 0:01:05.7]} 21... Rae8 {[%clk 0:00:59.8]} 22.
Be3 {[%clk 0:01:02.9]} 22... Nf4 {[%clk 0:00:54.3]} 23. Bxf4 {[%clk 0:01:01.3]}
23... Qxf4 {[%clk 0:00:54]} 24. Nxe5 {[%clk 0:00:56.7]} 24... Rxe5 {[%clk
0:00:52.2]} 25. Rd8 {[%clk 0:00:53.5]} 25... Rfe8 {[%clk 0:00:47]} 26. c7 {[%clk
0:00:44.6]} 26... h6 {[%clk 0:00:27.6]} 27. Qxe5 {[%clk 0:00:30.9]} 27... fxe5
{[%clk 0:00:15]} 28. c8=Q {[%clk 0:00:30.1]} 28... Rxd8 {[%clk 0:00:13.6]} 29.
Qxd8+ {[%clk 0:00:30.9]} 29... Kh7 {[%clk 0:00:13.9]} 30. Re1 {[%clk 0:00:29.9]}
30... e4 {[%clk 0:00:13.6]} 31. Qd4 {[%clk 0:00:29.4]} 31... Qf7 {[%clk
0:00:10.6]} 32. Qxe4+ {[%clk 0:00:29.3]} 32... g6 {[%clk 0:00:09.9]} 33. Qe7
{[%clk 0:00:29.3]} 1-0

[Event "Early-Titled-Tuesday-Blitz-June-18-2024"]
[Site "Chess.com"]
[Date "2024.06.18"]
[Round "2"]
[White "SALVA-DALI"]
[Black "StoreySniper"]
[Result "1-0"]
[WhiteElo "2768"]
[BlackElo "2425"]
[TimeControl "180+1"]
[EndTime "8:17:48 PDT"]
[Termination "SALVA-DALI won on time"]

1. e4 {[%clk 0:03:00.9]} 1... g6 {[%clk 0:03:00.1]} 2. Nc3 {[%clk 0:03:00.6]}
2... Bg7 {[%clk 0:03:00.5]} 3. d4 {[%clk 0:03:00.6]} 3... c5 {[%clk 0:03:00.9]}
4. dxc5 {[%clk 0:03:00.1]} 4... Bxc3+ {[%clk 0:03:00.4]} 5. bxc3 {[%clk
0:02:59.9]} 5... Nf6 {[%clk 0:03:01.1]} 6. Bd3 {[%clk 0:02:59.1]} 6... Qa5
{[%clk 0:03:00.5]} 7. Ne2 {[%clk 0:02:59.2]} 7... Na6 {[%clk 0:02:56.4]} 8. O-O
{[%clk 0:02:58.6]} 8... Nxc5 {[%clk 0:02:56.2]} 9. f3 {[%clk 0:02:59.3]} 9... d6
{[%clk 0:02:51.3]} 10. Be3 {[%clk 0:02:59.9]} 10... O-O {[%clk 0:02:47]} 11. Qd2
{[%clk 0:02:59.5]} 11... Be6 {[%clk 0:02:39.6]} 12. Nd4 {[%clk 0:02:59.3]} 12...
Bd7 {[%clk 0:02:29.6]} 13. Nb3 {[%clk 0:02:59.5]} 13... Qc7 {[%clk 0:02:14.1]}
14. Nxc5 {[%clk 0:02:55.8]} 14... dxc5 {[%clk 0:02:14.3]} 15. c4 {[%clk
0:02:56.7]} 15... e5 {[%clk 0:02:04.6]} 16. a4 {[%clk 0:02:54.6]} 16... Be6
{[%clk 0:01:59.8]} 17. a5 {[%clk 0:02:52.7]} 17... Ne8 {[%clk 0:01:49.7]} 18.
Qf2 {[%clk 0:02:52.9]} 18... Rc8 {[%clk 0:01:45.8]} 19. f4 {[%clk 0:02:53.5]}
19... f6 {[%clk 0:01:07.9]} 20. fxe5 {[%clk 0:02:52.8]} 20... Qxe5 {[%clk
0:01:07.6]} 21. Rab1 {[%clk 0:02:48.3]} 21... Qc7 {[%clk 0:01:03.2]} 22. Qh4
{[%clk 0:02:36.4]} 22... b6 {[%clk 0:00:51.8]} 23. axb6 {[%clk 0:02:34.7]} 23...
axb6 {[%clk 0:00:52]} 24. Bh6 {[%clk 0:02:34.2]} 24... Rf7 {[%clk 0:00:50.2]}
25. Ra1 {[%clk 0:02:29.3]} 25... Qe7 {[%clk 0:00:35.3]} 26. Ra6 {[%clk 0:02:25]}
26... Rb8 {[%clk 0:00:34.6]} 27. Rb1 {[%clk 0:02:25]} 27... Bc8 {[%clk
0:00:29.8]} 28. Raxb6 {[%clk 0:02:23.7]} 28... Rxb6 {[%clk 0:00:29.5]} 29. Rxb6
{[%clk 0:02:24.6]} 29... Qe5 {[%clk 0:00:26.3]} 30. Rb1 {[%clk 0:02:20.2]} 30...
g5 {[%clk 0:00:24.8]} 31. Qf2 {[%clk 0:02:18.3]} 31... Be6 {[%clk 0:00:19.5]}
32. Rb5 {[%clk 0:02:15.5]} 32... Rc7 {[%clk 0:00:17.9]} 33. h4 {[%clk
0:02:14.2]} 33... gxh4 {[%clk 0:00:16.3]} 34. Bf4 {[%clk 0:02:14.2]} 34... Qa1+
{[%clk 0:00:15]} 35. Kh2 {[%clk 0:02:15]} 35... Rg7 {[%clk 0:00:14]} 36. Rxc5
{[%clk 0:02:10.4]} 36... h3 {[%clk 0:00:12.4]} 37. g3 {[%clk 0:02:10.8]} 37...
Re7 {[%clk 0:00:06.5]} 38. e5 {[%clk 0:02:05.4]} 38... f5 {[%clk 0:00:06]} 39.
Rc6 {[%clk 0:02:03.9]} 39... Ng7 {[%clk 0:00:05.3]} 40. c5 {[%clk 0:02:03.4]}
40... Rb7 {[%clk 0:00:05.3]} 41. Rb6 {[%clk 0:01:39]} 41... Bd5 {[%clk
0:00:05.6]} 42. Qf1 {[%clk 0:01:32.8]} 42... Qa8 {[%clk 0:00:05.7]} 43. Rxb7
{[%clk 0:01:32.4]} 43... Qxb7 {[%clk 0:00:05.9]} 44. Qxh3 {[%clk 0:01:29.8]}
44... Bc6 {[%clk 0:00:05.4]} 45. Qh4 {[%clk 0:01:22]} 45... Qd7 {[%clk
0:00:04.7]} 46. Bc4+ {[%clk 0:01:16.4]} 46... Kh8 {[%clk 0:00:04.3]} 47. Qf6
{[%clk 0:01:15.6]} 47... Bd5 {[%clk 0:00:02.4]} 48. Qf8+ {[%clk 0:01:15.1]} 1-0

[Event "Early-Titled-Tuesday-Blitz-June-18-2024"]
[Site "Chess.com"]
[Date "2024.06.18"]
[Round "2"]
[White "zverr1"]
[Black "Senn71"]
[Result "1-0"]
[WhiteElo "2542"]
[BlackElo "2343"]
[TimeControl "180+1"]
[EndTime "8:17:48 PDT"]
[Termination "zverr1 won on time"]

1. d4 {[%clk 0:03:00.9]} 1... d5 {[%clk 0:02:57.9]} 2. Nc3 {[%clk 0:03:01.2]}
2... Nf6 {[%clk 0:02:55.6]} 3. Bf4 {[%clk 0:03:01.1]} 3... c6 {[%clk 0:02:53.3]}
4. e3 {[%clk 0:02:59.3]} 4... Bf5 {[%clk 0:02:52.6]} 5. Bd3 {[%clk 0:02:57.8]}
5... e6 {[%clk 0:02:51.7]} 6. f3 {[%clk 0:02:54.4]} 6... Be7 {[%clk 0:02:20.4]}
7. g4 {[%clk 0:02:34.5]} 7... Bg6 {[%clk 0:02:18.9]} 8. h4 {[%clk 0:02:34.1]}
8... Qb6 {[%clk 0:02:10.6]} 9. h5 {[%clk 0:02:21.5]} 9... Bxd3 {[%clk
0:02:00.5]} 10. Qxd3 {[%clk 0:02:22.4]} 10... c5 {[%clk 0:01:42.6]} 11. Qb5+
{[%clk 0:02:10.2]} 11... Nc6 {[%clk 0:01:29.4]} 12. Qxb6 {[%clk 0:02:04.6]}
12... axb6 {[%clk 0:01:30.2]} 13. Nb5 {[%clk 0:02:05.2]} 13... Kd7 {[%clk
0:01:29.8]} 14. c3 {[%clk 0:02:04.4]} 14... h6 {[%clk 0:01:22.3]} 15. Ne2 {[%clk
0:01:58.3]} 15... Ne8 {[%clk 0:01:21.8]} 16. Kf2 {[%clk 0:01:55.4]} 16... Nd6
{[%clk 0:01:19.6]} 17. Bxd6 {[%clk 0:01:54.4]} 17... Bxd6 {[%clk 0:01:18.4]} 18.
f4 {[%clk 0:01:54.2]} 18... f6 {[%clk 0:01:12.7]} 19. a3 {[%clk 0:01:46.4]}
19... Ra5 {[%clk 0:00:59.2]} 20. Nxd6 {[%clk 0:01:38.3]} 20... Kxd6 {[%clk
0:00:58.6]} 21. b4 {[%clk 0:01:39.2]} 21... Ra4 {[%clk 0:00:51.9]} 22. Rab1
{[%clk 0:01:15.4]} 22... c4 {[%clk 0:00:38.9]} 23. g5 {[%clk 0:01:06.1]} 23...
Rxa3 {[%clk 0:00:22.6]} 24. gxf6 {[%clk 0:01:05.9]} 24... gxf6 {[%clk 0:00:23]}
25. Rhg1 {[%clk 0:01:03.8]} 25... e5 {[%clk 0:00:20.1]} 26. Rg6 {[%clk
0:01:02.4]} 26... Ke7 {[%clk 0:00:19.5]} 27. Rbg1 {[%clk 0:01:00.1]} 27... Rh7
{[%clk 0:00:12]} 28. Rg7+ {[%clk 0:00:56.7]} 28... Rxg7 {[%clk 0:00:12.6]} 29.
Rxg7+ {[%clk 0:00:57.1]} 29... Ke6 {[%clk 0:00:13.3]} 30. Rxb7 {[%clk
0:00:57.9]} 30... exd4 {[%clk 0:00:06.6]} 31. Rxb6 {[%clk 0:00:58.1]} 31... Kd7
{[%clk 0:00:05.7]} 32. exd4 {[%clk 0:00:50.3]} 32... Kc7 {[%clk 0:00:01.6]} 33.
Rb5 {[%clk 0:00:50.6]} 33... Ne7 {[%clk 0:00:01.6]} 34. Rc5+ {[%clk 0:00:42.2]}
1-0

[Event "Early-Titled-Tuesday-Blitz-June-18-2024"]
[Site "Chess.com"]
[Date "2024.06.18"]
[Round "2"]
[White "ChessArchitect64"]
[Black "amylazy"]
[Result "0-1"]
[WhiteElo "2063"]
[BlackElo "2456"]
[TimeControl "180+1"]
[EndTime "8:17:51 PDT"]
[Termination "amylazy won by checkmate"]

1. d4 {[%clk 0:03:00.9]} 1... Nf6 {[%clk 0:02:53]} 2. Bg5 {[%clk 0:03:01.1]}
2... d5 {[%clk 0:02:52.3]} 3. Bxf6 {[%clk 0:03:00.7]} 3... exf6 {[%clk
0:02:52.5]} 4. e3 {[%clk 0:03:00.6]} 4... Bd6 {[%clk 0:02:52.5]} 5. c4 {[%clk
0:03:00.7]} 5... c6 {[%clk 0:02:52.7]} 6. Nc3 {[%clk 0:03:00.1]} 6... Be6 {[%clk
0:02:52.3]} 7. cxd5 {[%clk 0:02:56.1]} 7... cxd5 {[%clk 0:02:51.9]} 8. Nf3
{[%clk 0:02:56.2]} 8... O-O {[%clk 0:02:50.6]} 9. Bd3 {[%clk 0:02:55.8]} 9...
Nc6 {[%clk 0:02:51]} 10. a3 {[%clk 0:02:55.7]} 10... f5 {[%clk 0:02:51.2]} 11.
O-O {[%clk 0:02:51.7]} 11... g6 {[%clk 0:02:50.4]} 12. b4 {[%clk 0:02:49.2]}
12... a6 {[%clk 0:02:30.3]} 13. Qb3 {[%clk 0:02:11.9]} 13... Rc8 {[%clk
0:02:20.2]} 14. Rac1 {[%clk 0:02:01]} 14... f4 {[%clk 0:02:11.3]} 15. Na4 {[%clk
0:01:27.2]} 15... Bg4 {[%clk 0:01:42.4]} 16. Be2 {[%clk 0:01:22.5]} 16... Re8
{[%clk 0:01:24.9]} 17. Nc5 {[%clk 0:01:12.1]} 17... fxe3 {[%clk 0:01:24.5]} 18.
fxe3 {[%clk 0:00:44.6]} 18... Qe7 {[%clk 0:01:21.5]} 19. Rc3 {[%clk 0:00:43.7]}
19... Bb8 {[%clk 0:00:52.2]} 20. Qxd5 {[%clk 0:00:36.5]} 20... b6 {[%clk
0:00:51.6]} 21. Nb3 {[%clk 0:00:29.4]} 21... Nxb4 {[%clk 0:00:49.5]} 22. axb4
{[%clk 0:00:16.6]} 22... Rxc3 {[%clk 0:00:48.4]} 23. Nbd2 {[%clk 0:00:16.7]}
23... Qxe3+ {[%clk 0:00:48]} 24. Kh1 {[%clk 0:00:17]} 24... Be6 {[%clk
0:00:40.3]} 25. Qb7 {[%clk 0:00:11.2]} 25... Qxe2 {[%clk 0:00:39.2]} 26. Ng5
{[%clk 0:00:07.7]} 26... Qh5 {[%clk 0:00:24]} 27. Nxe6 {[%clk 0:00:06.8]} 27...
Qxh2# {[%clk 0:00:21.7]} 0-1

[Event "Early-Titled-Tuesday-Blitz-June-18-2024"]
[Site "Chess.com"]
[Date "2024.06.18"]
[Round "2"]
[White "Schattman"]
[Black "Ash15K"]
[Result "1/2-1/2"]
[WhiteElo "2517"]
[BlackElo "2308"]
[TimeControl "180+1"]
[EndTime "8:17:54 PDT"]
[Termination "Game drawn by agreement"]

1. Nf3 {[%clk 0:02:44.7]} 1... d5 {[%clk 0:02:57.7]} 2. b3 {[%clk 0:02:42]} 2...
b6 {[%clk 0:02:57.4]} 3. Bb2 {[%clk 0:02:40.7]} 3... Bb7 {[%clk 0:02:56.8]} 4.
g3 {[%clk 0:02:40.3]} 4... Nf6 {[%clk 0:02:56.8]} 5. d4 {[%clk 0:02:38.5]} 5...
e6 {[%clk 0:02:57.2]} 6. Bg2 {[%clk 0:02:38.8]} 6... Be7 {[%clk 0:02:57.3]} 7.
O-O {[%clk 0:02:38.5]} 7... O-O {[%clk 0:02:57.1]} 8. Ne5 {[%clk 0:02:38.7]}
8... Nbd7 {[%clk 0:02:55.3]} 9. c4 {[%clk 0:02:38.8]} 9... c5 {[%clk 0:02:48.8]}
10. cxd5 {[%clk 0:02:34]} 10... exd5 {[%clk 0:02:46.9]} 11. Nd2 {[%clk
0:02:13.6]} 11... Rc8 {[%clk 0:02:27.6]} 12. Bh3 {[%clk 0:02:13.7]} 12... Rc7
{[%clk 0:02:21.3]} 13. Rc1 {[%clk 0:02:08.5]} 13... Bd6 {[%clk 0:02:13.8]} 14.
Nxd7 {[%clk 0:02:02]} 14... Nxd7 {[%clk 0:02:12.9]} 15. Nf3 {[%clk 0:01:57.8]}
15... Re8 {[%clk 0:02:09.3]} 16. e3 {[%clk 0:01:54.8]} 16... Nf6 {[%clk
0:02:05.1]} 17. Ne5 {[%clk 0:01:49.4]} 17... Rce7 {[%clk 0:02:04.7]} 18. Bg2
{[%clk 0:01:36.9]} 18... Nd7 {[%clk 0:01:43.1]} 19. Nxd7 {[%clk 0:01:32.8]}
19... Rxd7 {[%clk 0:01:36.2]} 20. dxc5 {[%clk 0:01:30]} 20... bxc5 {[%clk
0:01:33.1]} 21. Qd2 {[%clk 0:01:28]} 21... Bf8 {[%clk 0:01:12.7]} 22. Rfd1
{[%clk 0:01:26]} 22... Qb6 {[%clk 0:01:05.6]} 23. Bh3 {[%clk 0:01:19.2]} 23...
Rde7 {[%clk 0:00:59]} 24. Bg2 {[%clk 0:01:18.7]} 24... Rd7 {[%clk 0:00:58.9]}
25. Qc2 {[%clk 0:01:16.9]} 25... Qe6 {[%clk 0:00:44.5]} 26. Ba3 {[%clk
0:01:10.4]} 26... Rc7 {[%clk 0:00:42.4]} 27. Qd2 {[%clk 0:01:09.2]} 27... Rd8
{[%clk 0:00:40]} 28. Qa5 {[%clk 0:01:08]} 28... Qb6 {[%clk 0:00:38.6]} 29. Qxb6
{[%clk 0:01:01.3]} 29... axb6 {[%clk 0:00:39.5]} 30. Rd2 {[%clk 0:01:01.8]}
30... Ra8 {[%clk 0:00:37.8]} 31. Bb2 {[%clk 0:00:52.2]} 31... Rxa2 {[%clk
0:00:37.3]} 32. Rcd1 {[%clk 0:00:51.5]} 32... Rd7 {[%clk 0:00:35]} 33. Bh3
{[%clk 0:00:48.8]} 33... Rd8 {[%clk 0:00:33.4]} 34. Be5 {[%clk 0:00:48.1]} 34...
Rxd2 {[%clk 0:00:32.4]} 35. Rxd2 {[%clk 0:00:49]} 35... Bd6 {[%clk 0:00:32.5]}
36. Bc3 {[%clk 0:00:38.5]} 36... Kf8 {[%clk 0:00:31.2]} 37. Bg2 {[%clk
0:00:38.2]} 37... Bc7 {[%clk 0:00:29.1]} 38. h4 {[%clk 0:00:36.2]} 38... f6
{[%clk 0:00:28.9]} 39. h5 {[%clk 0:00:36.2]} 39... h6 {[%clk 0:00:27.4]} 40. f4
{[%clk 0:00:36.2]} 40... Ke7 {[%clk 0:00:27.2]} 41. Kf2 {[%clk 0:00:35]} 1/2-1/2

[Event "Early-Titled-Tuesday-Blitz-June-18-2024"]
[Site "Chess.com"]
[Date "2024.06.18"]
[Round "2"]
[White "Hudijegszid"]
[Black "chessfatbear"]
[Result "0-1"]
[WhiteElo "2500"]
[BlackElo "2764"]
[TimeControl "180+1"]
[EndTime "8:17:55 PDT"]
[Termination "chessfatbear won by resignation"]

1. e4 {[%clk 0:03:00.9]} 1... c6 {[%clk 0:02:55.9]} 2. d4 {[%clk 0:02:59]} 2...
d5 {[%clk 0:02:55.9]} 3. e5 {[%clk 0:02:59.2]} 3... Bf5 {[%clk 0:02:55.4]} 4. h4
{[%clk 0:02:57]} 4... h5 {[%clk 0:02:54.7]} 5. Bd3 {[%clk 0:02:56.8]} 5... Bxd3
{[%clk 0:02:54.9]} 6. Qxd3 {[%clk 0:02:57]} 6... Qa5+ {[%clk 0:02:54.8]} 7. Nd2
{[%clk 0:02:54.4]} 7... e6 {[%clk 0:02:54.4]} 8. Nf3 {[%clk 0:02:53]} 8... Ne7
{[%clk 0:02:49.3]} 9. O-O {[%clk 0:02:51.5]} 9... Nf5 {[%clk 0:02:49]} 10. Nb3
{[%clk 0:02:50.4]} 10... Qa6 {[%clk 0:02:48.6]} 11. Qd1 {[%clk 0:02:48.9]} 11...
Be7 {[%clk 0:02:42.3]} 12. Bg5 {[%clk 0:02:39.9]} 12... Bxg5 {[%clk 0:02:13.7]}
13. Nc5 {[%clk 0:02:23.9]} 13... Qb6 {[%clk 0:02:09.5]} 14. hxg5 {[%clk
0:02:24.1]} 14... Nd7 {[%clk 0:02:03.3]} 15. g6 {[%clk 0:02:17.6]} 15... Nxc5
{[%clk 0:01:58.8]} 16. gxf7+ {[%clk 0:02:17.4]} 16... Kxf7 {[%clk 0:01:57.9]}
17. dxc5 {[%clk 0:02:17.7]} 17... Qxc5 {[%clk 0:01:56.8]} 18. Ng5+ {[%clk
0:02:17.2]} 18... Ke7 {[%clk 0:01:56.6]} 19. c3 {[%clk 0:01:50.5]} 19... Raf8
{[%clk 0:01:53.6]} 20. Qa4 {[%clk 0:01:44.3]} 20... h4 {[%clk 0:01:33.5]} 21. b4
{[%clk 0:01:43.7]} 21... Qb6 {[%clk 0:01:32.6]} 22. c4 {[%clk 0:01:40.8]} 22...
dxc4 {[%clk 0:01:27.7]} 23. b5 {[%clk 0:01:19.9]} 23... cxb5 {[%clk 0:01:10.7]}
24. Qb4+ {[%clk 0:01:19.2]} 24... Kd7 {[%clk 0:01:09.8]} 25. Rad1+ {[%clk
0:01:16]} 25... Kc8 {[%clk 0:01:09.4]} 26. a4 {[%clk 0:01:08.2]} 26... h3 {[%clk
0:01:03.2]} 27. axb5 {[%clk 0:00:42.6]} 27... hxg2 {[%clk 0:00:41.3]} 28. Kxg2
{[%clk 0:00:32.9]} 28... Nh4+ {[%clk 0:00:39.4]} 29. Kg1 {[%clk 0:00:31.6]}
29... Rf4 {[%clk 0:00:37.5]} 30. Rfe1 {[%clk 0:00:05.3]} 30... Qxf2+ {[%clk
0:00:35]} 31. Kh1 {[%clk 0:00:06.2]} 31... Nf3+ {[%clk 0:00:34]} 0-1